Cogmind - Beta 10.1 @@@ ROGUE MODE // 2020.09.26 @ 19:32:26 Player: Tone Result: Destroyed by MAIN.C with High-powered Disruptor Cannon Performance ------------- Evolutions (9) 4500 Regions Visited (26) 5200 Robots Destroyed (423) 2115 Value Destroyed (19754) 19754 Prototype IDs (77) 1540 Alien Tech Used (0) 0 Bonus (24188) 24188 TOTAL SCORE: 57297 Bonus ------- Triggered High Security 2000 High Alert Combat Kills 8723 Follower Combat Kills 7677 Network Hubs Disabled 600 Aligned with FarCom 300 Met Imprinter 300 Was Imprinted 300 Met Zhirov 300 Built Enhanced Grunts 300 A7 Reached Mainframe 300 Met R17 at Cetus 500 Scanned by Researcher 500 Destroyed MAIN.C Guards 500 Met MAIN.C 5000 Friendly Fire -3112 Cogmind --------- Core Integrity 0/1600 Matter 300/300 Energy 84/100 System Corruption 25% Temperature Cool (18) Movement Core (50) Location -1/Command Parts ------- > --- POWER (4) -------- (None) > --- PROPULSION (10) -- (None) > --- UTILITY (4) ------ (None) > --- WEAPON (7) ------- CR-A16's Behemoth Slayer > --- INVENTORY (4) ---- Enhanced Nova Cannon Peak State ------------ > --- POWER ------------ Antimatter Reactor Reinforced Antimatter Reactor Quantum Reactor Light Quantum Reactor > --- PROPULSION ------- Biometal Medium Treads Experimental Biometal Heavy Treads Myomer Leg Myomer Leg Biometal Leg Biometal Leg Biometal Leg Biometal Leg Biometal Leg > --- UTILITY ---------- Advanced Cooling System Experimental Cooling System Advanced Particle Charger Advanced Phase Shifter > --- WEAPON ----------- Zionite Alpha Cannon Zionite Alpha Cannon Mk. II Zionite Alpha Cannon Mk. II KE Penetrator KE Penetrator Shock Bomb Launcher CR-A16's Behemoth Slayer > --- INVENTORY -------- Zionite Weapon Casing Zionite Weapon Casing Enhanced Nova Cannon [Rating: 205] Favorites ----------- Power Reinforced Fission Core Engine Improved Ion Engine Power Core Reinforced Fission Core Reactor Quantum Reactor Propulsion Light Treads Treads Light Treads Leg Biometal Leg Wheel Armored Huge Wheel Hover Unit Aerolev Unit Utility High-capacity Storage Unit Device Advanced Cooling System Storage High-capacity Storage Unit Processor Advanced Signal Interpreter Hackware System Shield Protection Hardened Light Armor Plating Weapon Flak Gun Energy Gun Heavy Laser Energy Cannon Long-range Proton Cannon Ballistic Gun Flak Gun Ballistic Cannon Bore Cannon Launcher Proton Missile Launcher Slashing Weapon Plasma Sword Piercing Weapon CR-A16's Behemoth Slayer Build | -11 -10 -10 -9 -9 -9 -8 -8 -8 -7 -7 -7 -7 -6 -6 -5 -5 -5 -5 -5 -4 -4 -4 -3 -2 -1 -1 ------- Run | Scr Mat Min Mat Min Exi Min Mat Sto Fac Low Low Zio Pro Fac Fac Ext Cet Arc Hub Fac Was Fac Res Res Acc Com Slots Evolved 18 | . . . 2 . . . 2 . 2 . . . . 2 2 . . . . 2 . . 2 2 2 . Power 3 | . . . . . . . . . . . . . . 1 1 . . . . . . . . . 1 . Propulsion 8 | . . . 1 . . . 1 . . . . . . 1 1 . . . . 2 . . 1 . 1 . Utility 2 | . . . 1 . . . 1 . . . . . . . . . . . . . . . . . . . Weapon 5 | . . . . . . . . . 2 . . . . . . . . . . . . . 1 2 . . Parts Attached 644 | 1 9 6 12 3 35 . 9 52 70 4 . 20 2 23 44 50 22 1 1 35 9 86 47 27 14 62 Power 57 | . 1 . 1 . 1 . 2 3 4 . . 4 . 1 8 5 2 . . 1 2 3 2 5 2 10 Engine 12 | . 1 . 1 . 1 . 1 3 2 . . 1 . . 2 . . . . . . . . . . . Core 18 | . . . . . . . 1 . 2 . . 3 . 1 6 3 . . . . . 2 . . . . Reactor 27 | . . . . . . . . . . . . . . . . 2 2 . . 1 2 1 2 5 2 10 Propulsion 143 | . 2 2 4 . 7 . 4 16 13 . . 2 1 5 7 13 5 . . 3 . 17 12 6 6 18 Treads 96 | . 1 1 3 . 6 . 4 15 8 . . 2 . 3 6 8 5 . . 2 . 11 6 3 4 8 Leg 22 | . . . . . 1 . . . . . . . . . . 1 . . . . . 3 4 3 . 10 Wheel 24 | . 1 1 1 . . . . . 5 . . . 1 2 1 4 . . . 1 . 3 2 . 2 . Hover 1 | . . . . . . . . 1 . . . . . . . . . . . . . . . . . . Flight . | . . . . . . . . . . . . . . . . . . . . . . . . . . . Utility 167 | 1 3 3 1 . 17 . 1 13 21 1 . 6 . 5 8 11 7 . . 8 1 20 9 12 1 18 Device 83 | . . 1 . . 7 . . 7 3 1 . 3 . 2 4 5 2 . . 4 . 17 6 6 1 14 Storage 22 | 1 3 2 1 . 8 . . . 1 . . 2 . 1 . 1 . . . . . . 1 . . 1 Processor 10 | . . . . . . . . . . . . . . . . . . . . 1 . 2 . 6 . 1 Hackware 1 | . . . . . . . . . 1 . . . . . . . . . . . . . . . . . Protection 51 | . . . . . 2 . 1 6 16 . . 1 . 2 4 5 5 . . 3 1 1 2 . . 2 Artifact . | . . . . . . . . . . . . . . . . . . . . . . . . . . . Weapon 277 | . 3 1 6 3 10 . 2 20 32 3 . 8 1 12 21 21 8 1 1 23 6 46 24 4 5 16 Energy Gun 15 | . 2 . . . . . . 7 . . . . . . 1 2 . . . 2 . . . . . 1 Energy Cannon 86 | . . . 2 . . . . 1 13 2 . 1 1 4 8 8 3 1 . 4 . 16 8 2 5 7 Ballistic Gun 120 | . 1 . 4 2 7 . 2 8 15 1 . 7 . 7 8 7 2 . 1 13 1 16 11 2 . 5 Ballistic Cannon 24 | . . . . . . . . . 1 . . . . . . . . . . 4 5 13 1 . . . Launcher 15 | . . 1 . 1 1 . . 2 . . . . . 1 2 . 2 . . . . . 3 . . 2 Special Weapon . | . . . . . . . . . . . . . . . . . . . . . . . . . . . Impact Weapon . | . . . . . . . . . . . . . . . . . . . . . . . . . . . Slashing Weapon 9 | . . . . . 2 . . 2 3 . . . . . 1 1 . . . . . . . . . . Piercing Weapon 8 | . . . . . . . . . . . . . . . 1 3 1 . . . . 1 1 . . 1 Special Melee Weapon . | . . . . . . . . . . . . . . . . . . . . . . . . . . . Unidentified Prototypes 40 | . . 1 1 . 4 . . 8 1 . . . . . 2 9 3 . . 2 . 2 . 1 . 6 Parts Lost 130 | . . . 1 1 1 . 4 20 3 . . . . 3 7 3 . . . 1 . 11 24 2 9 40 Power 20 | . . . . . 1 . 1 1 1 . . . . . 4 . . . . . . 1 3 1 1 6 Propulsion 56 | . . . . . . . 2 10 1 . . . . . 2 2 . . . . . 4 9 . 8 18 Utility 19 | . . . . . . . . 2 1 . . . . . . . . . . . . 1 5 1 . 9 Weapon 35 | . . . 1 1 . . 1 7 . . . . . 3 1 1 . . . 1 . 5 7 . . 7 Highest Loss Streak 24 | . . . 1 1 1 . 3 5 1 . . . . 1 2 2 . . . 1 . 4 20 2 3 24 Average Slot Usage (%) 84 | . 99 99 98 100 91 100 96 99 90 76 76 76 78 87 89 92 86 82 82 77 77 74 79 38 44 68 Engine 3 | . 14 14 11 11 7 11 7 8 4 . . . . . 2 . . . . . . . . . . . Core 3 | . . . . . . . . . 1 7 7 7 7 13 9 12 6 5 5 5 5 4 3 . . . Reactor 3 | . . . . . . . . . . . . . . . . 1 9 11 11 10 10 8 7 5 1 9 Treads 19 | . 14 17 26 33 32 33 33 35 14 . . 1 5 14 22 16 18 17 17 21 21 18 21 5 11 5 Leg 1 | . . . . . . . . . . . . . . . . 2 . . . . . . 2 3 10 21 Wheel 4 | . 14 10 5 . . . . . 7 15 15 14 12 8 5 10 3 . . . . . 1 . . . Device 5 | . . . . . 5 . . 5 5 6 7 6 7 5 6 5 5 5 5 6 5 8 7 10 9 10 Storage 15 | . 28 27 33 33 20 33 27 24 15 15 15 16 15 13 11 11 11 11 11 10 10 10 8 . . . Protection 2 | . . . . . 2 . 8 6 9 . . . . 3 3 3 5 5 5 3 1 . . . . . Energy Cannon 3 | . . . . . . . . 4 3 4 7 6 7 3 4 8 9 5 1 1 . 1 2 . 1 1 Ballistic Gun 15 | . 17 22 20 22 21 22 18 10 23 26 23 21 23 21 10 4 6 11 14 18 18 7 13 2 . 10 Ballistic Cannon 1 | . . . . . . . . . 1 . . . . . . . . . . . 2 9 4 . . . Naked Turns . | . . . . . . . . . . . . . . . . . . . . . . . . . . . Heaviest Build 186 | 15 75 76 92 91 109 109 114 117 109 101 101 111 101 109 136 151 166 155 155 167 176 176 186 38 31 142 Greatest Support 335 | 20 10 40 60 60 60 60 80 80 83 56 56 56 56 56 96 60 240 240 240 320 320 320 335 111 249 240 Greatest Overweight (x) 9 | . 7 7 9 1 2 1 1 1 3 1 1 3 3 3 4 5 5 . . . . 1 4 1 4 1 Average Overweight (x) 1 | . 3 5 5 1 . 1 1 1 2 1 1 1 1 2 3 3 1 . . . . . . . . . Largest Inventory Capacity 28 | 8 20 20 26 26 28 28 28 28 20 20 20 20 20 24 20 20 20 20 20 20 20 20 20 4 4 4 Average Capacity 19 | 6 12 19 25 26 18 28 28 25 20 20 20 19 20 20 20 20 20 20 20 20 20 20 19 4 4 4 Most Carried 28 | 6 17 20 26 26 28 28 28 28 20 20 20 20 20 20 20 20 20 20 20 20 20 20 20 4 4 4 Average Carried 18 | 6 9 18 24 25 15 28 26 23 19 19 20 19 19 18 19 19 19 20 19 19 19 19 18 3 3 3 Final Capacity 28 | 8 20 20 26 26 28 28 28 20 20 20 20 20 20 20 20 20 20 20 20 20 20 20 4 4 4 4 Final Carried 28 | 6 17 20 26 26 28 28 27 19 20 20 20 20 20 20 19 20 20 20 20 20 20 20 4 4 4 1 Class Distribution -------------------- 28% | Hauler-Mutant 27% | Scavenger-Mutant 11% | Scavenger-Tank 7% | Hauler-Gunner 7% | Scavenger-Gunner 6% | Mutant 4% | Hauler-Tank 3% | Commander-Mutant Dominant Class ---------------- Mutant | -10/Materials Hauler-Mutant | -10/Mines Hauler-Mutant | -9/Materials Hauler-Mutant | -9/Mines Scavenger-Mutant | -9/Exiles Hauler-Mutant | -8/Mines Scavenger-Mutant | -8/Materials Hauler-Mutant | -8/Storage Hauler-Mutant | -7/Factory Hauler-Mutant | -7/Lower Caves Hauler-Mutant | -7/Lower Caves Hauler-Gunner | -7/Zion Hauler-Gunner | -6/Proximity Caves Hauler-Mutant | -6/Factory Scavenger-Mutant | -5/Factory Scavenger-Mutant | -5/Extension Commander-Mutant | -5/Cetus Scavenger-Tank | -5/Archives Scavenger-Tank | -5/Hub_04(d) Scavenger-Tank | -4/Factory Scavenger-Gunner | -4/Waste Scavenger-Mutant | -4/Factory Scavenger-Tank | -3/Research Mutant | -2/Research Mutant | -1/Access Scavenger-Executioner | -1/Command Resources | -11 -10 -10 -9 -9 -9 -8 -8 -8 -7 -7 -7 -7 -6 -6 -5 -5 -5 -5 -5 -4 -4 -4 -3 -2 -1 -1 ----------- Run | Scr Mat Min Mat Min Exi Min Mat Sto Fac Low Low Zio Pro Fac Fac Ext Cet Arc Hub Fac Was Fac Res Res Acc Com Matter Collected 21304 | 225 116 397 217 143 1028 . 278 1901 2046 69 84 193 193 894 1259 639 319 . 306 1265 324 4464 3640 262 248 794 Remotely . | . . . . . . . . . . . . . . . . . . . . . . . . . . . Salvage Created 23695 | 97 116 238 480 47 521 . 330 1774 2154 115 24 . 83 963 1810 710 1006 . 811 1170 820 4622 4079 282 412 1031 Parts 1058 | 1 7 16 29 7 68 . 23 85 116 4 2 . 4 51 52 34 40 . 44 47 10 183 145 26 31 33 Haulers Intercepted 10 | . . . 2 . . . . 2 2 . . . . . 1 . . . . 1 . 2 . . . . Recyclers Shooed 21 | . . 1 1 . . . 3 2 1 . . . . 1 1 . . . . 2 . 5 1 1 . 2 Parts Field Recycled . | . . . . . . . . . . . . . . . . . . . . . . . . . . . Retrieved Matter . | . . . . . . . . . . . . . . . . . . . . . . . . . . . Parts Self-Destructed 5 | . . . . . . . . . . . . 1 4 . . . . . . . . . . . . . Prevented 6 | . . . . . . . . . . 4 1 . 1 . . . . . . . . . . . . . Kills | -11 -10 -10 -9 -9 -9 -8 -8 -8 -7 -7 -7 -7 -6 -6 -5 -5 -5 -5 -5 -4 -4 -4 -3 -2 -1 -1 ------- Run | Scr Mat Min Mat Min Exi Min Mat Sto Fac Low Low Zio Pro Fac Fac Ext Cet Arc Hub Fac Was Fac Res Res Acc Com Combat Hostiles Destroyed 322 | . 3 6 7 5 4 . 6 34 31 2 . . 2 19 24 8 14 . 11 12 . 65 53 4 8 4 Melee 7 | . . . . . 1 . . . . . . . . . . 2 . . . . . . . 3 1 . Guns 162 | . 3 3 7 2 1 . 6 27 24 . . . 2 13 5 2 1 . 11 12 . 17 26 . . . Cannons 74 | . . . . . . . . 2 5 1 . . . 1 9 3 3 . . . . 44 6 . . . AOE 42 | . . 3 . 3 2 . . 5 . . . . . 2 2 . 4 . . . . . 11 . 7 3 Classes Destroyed 23 | 1 1 2 2 . 2 . 1 4 3 . . . . 1 1 1 . . . . . 3 1 . . . Worker 16 | . . . . . . . . 1 . . . . . 1 2 . . . 6 . . 4 1 . 1 . Builder 8 | . . . . . . . . . 2 . . . . 1 . 2 . . 1 1 . 1 . . . . Tunneler 3 | . . . . . . . . . . . . . . . . . . . . . . 1 2 . . . Hauler 10 | . . . 2 . . . . 2 2 . . . . . 1 . . . . 1 . 2 . . . . Recycler 18 | 1 . 1 1 . . . . 1 4 . . . . . 1 1 . . . 3 . 4 . . . 1 Mechanic 4 | . . . . . . . . 2 . . . . . . . . . . . . . 1 1 . . . Operator 6 | . . . . . . . . . 1 . . . . . . 1 . . 1 . . 1 1 . 1 . Watcher 18 | . . . 2 . . . 1 . 3 . . . . . 2 1 1 . 1 1 . 4 . 2 . . Swarmer 52 | . . 3 2 5 . . . . 5 . . . 1 5 5 1 5 . 4 5 . . 3 2 6 . Saboteur 2 | . . . . . . . . . . . . . . 1 . . . . . . . . . . . 1 Grunt 134 | . 3 2 3 . . . 3 17 9 . . . 1 10 11 . 2 . 3 5 . 30 33 . . 2 Brawler 20 | . . . . . . . . 1 2 . . . . . 3 1 2 . . . . 6 5 . . . Duelist 14 | . . . . . . . . 6 2 . . . . 1 1 1 . . . . . 2 1 . . . Protector 4 | . . . . . . . . . . . . . . . . . . . . . . 2 2 . . . Sentry 39 | . . 1 2 . . . 2 9 8 . . . . 1 1 3 . . 4 . . 6 1 1 . . Demolisher 1 | . . . . . . . . . . . . . . . . 1 . . . . . . . . . . Hunter 19 | . . . . . . . 1 1 1 2 . . . . 2 . . . . . . 8 4 . . . Programmer 24 | . . . . . . . . . 4 . . . . 1 1 . . . . 2 . 10 3 1 2 . Behemoth 3 | . . . . . . . . . . . . . . . . . . . . . . 1 1 . . 1 Cetus Guard 5 | . . . . . . . . . . . . . . . . . 5 . . . . . . . . . Investigator 1 | . . . . . . . . . . . . . . . . . . . . . . . 1 . . . Zionite 8 | . . . . . 8 . . . . . . . . . . . . . . . . . . . . . Decomposer 1 | . . . . . . . . . . . 1 . . . . . . . . . . . . . . . Assembled 3 | . . . . . 3 . . . . . . . . . . . . . . . . . . . . . Butcher 1 | . . . . . . . . . . . . . . . . 1 . . . . . . . . . . Wizard 1 | . . . . . . . . . . . . . . . 1 . . . . . . . . . . . Fireman 3 | . . . . . . . . . . . . . . . 1 . 2 . . . . . . . . . Best Kill Streak 20 | 1 2 3 3 3 2 . 2 8 3 1 . . 2 8 4 3 7 . 6 6 . 10 20 2 7 3 Combat Bots Only 16 | . 2 3 2 3 2 . 2 7 4 1 . . 2 7 4 3 7 . 4 5 . 5 16 2 7 3 Max Kills in Single Turn 7 | 1 1 2 1 2 2 . 1 3 1 1 1 . 1 1 2 1 3 . 5 3 . 3 6 1 7 2 Gunslinging 1 | . . . . . . . . 1 . . . . . . . . . . 1 1 . . 1 . . . Exploded 7 | . . 2 . 2 2 . . 2 . . . . . 1 1 . 3 . . . . . 5 . 7 2 Melee 1 | . . . . . 1 . . . . . . . . . . 1 . . . . . . . 1 1 . Uniques/NPCs Destroyed 3 | . . . . . 2 . . . . . . . . . . . 1 . . . . . . . . . 8R-AWN (-9/Exiles) EX-BIN (-9/Exiles) EX-HEX (-9/Exiles) EX-DEC (-9/Exiles) A7 (-5/Cetus) Combat | -11 -10 -10 -9 -9 -9 -8 -8 -8 -7 -7 -7 -7 -6 -6 -5 -5 -5 -5 -5 -4 -4 -4 -3 -2 -1 -1 -------- Run | Scr Mat Min Mat Min Exi Min Mat Sto Fac Low Low Zio Pro Fac Fac Ext Cet Arc Hub Fac Was Fac Res Res Acc Com Damage Taken 45268 | . 56 396 342 119 685 . 747 3391 2078 325 38 . 236 1805 2009 873 1009 . 870 1115 . 8238 6656 2028 4566 7686 Core 5324 | . . 112 77 8 42 . 85 416 159 73 . . 20 149 172 93 153 . 94 34 . 561 1016 455 621 984 Absorbed by Shields 3432 | . . . . . . . . . . . . . . . . 54 161 . . . . 849 2349 . . 19 Reduced by Siege Mode 790 | . . . . . . . . . . . . . . . . . . . . . . 542 102 . . 146 Core Remaining (%) 56 | 100 . 55 . . . 68 . 8 . . . . 64 82 . . . . 48 . . 48 21 68 . . Volleys Fired 1142 | 5 11 17 37 18 60 . 43 119 144 9 1 . 8 67 96 27 31 . 27 40 10 209 118 3 6 36 Largest 6 | 2 2 2 2 2 2 . 2 2 4 1 1 . 3 4 3 3 3 . 3 4 4 4 5 1 1 6 Hottest 270 | 70 70 40 40 40 53 . 46 120 148 81 81 . 84 112 162 162 162 . 103 133 130 234 247 81 120 270 Shots Fired 2544 | 10 22 32 73 34 79 . 86 219 312 9 1 1 18 145 149 54 49 . 78 117 40 550 355 3 6 102 Gun 1684 | 10 22 30 72 32 78 . 86 170 235 . . 1 15 107 42 26 11 . 78 110 40 198 257 . . 64 Cannon 788 | . . . . . . . . 41 77 9 1 . 3 35 93 28 27 . . 7 . 352 80 3 6 26 Launcher 72 | . . 2 1 2 1 . . 8 . . . . . 3 14 . 11 . . . . . 18 . . 12 Special . | . . . . . . . . . . . . . . . . . . . . . . . . . . . Kinetic 1956 | 5 11 30 72 32 78 . 86 132 237 . . 1 15 107 42 26 11 . 78 110 40 473 309 . . 61 Thermal 207 | 5 11 . . . . . . 41 46 . . . 3 25 . 3 3 . . 7 . 46 12 . 2 3 Explosive 14 | . . 2 1 2 1 . . 8 . . . . . . . . . . . . . . . . . . Electromagnetic 341 | . . . . . . . . 38 29 9 1 . . 13 107 25 35 . . . . 31 34 3 4 12 Phasic 26 | . . . . . . . . . . . . . . . . . . . . . . . . . . 26 Robot Hit Streak 31 | 4 8 18 18 12 4 . 15 20 16 6 3 . 9 15 17 9 8 . 31 25 26 24 23 7 9 27 Robot Miss Streak 7 | 1 2 1 4 3 6 . 2 2 7 3 . . 4 6 6 3 2 . 2 2 1 3 3 . . 2 Penetration Max 2 | . . . . . 1 . . . . . . . . 1 1 1 1 . 1 2 . 2 2 . . . Secondary Targets 25 | . . . . . . . 1 4 . . . . . 1 . 1 . . 2 6 . . 10 . . . Max Gunslinging Chain 2 | . . . . . . . 1 1 . . . . . 1 . 1 . . 1 2 . . 2 . . . Shots Hit Robots 1833 | 8 16 26 55 25 71 . 69 171 218 6 1 . 13 98 100 40 28 . 54 83 34 348 258 10 4 97 Core Hits 1003 | 2 6 13 22 10 25 . 22 88 157 1 1 . 10 80 56 22 33 . 34 37 5 158 164 5 13 39 Critical Hits 217 | . . . . . 20 . 1 6 3 . . . . . 2 7 . . 9 18 9 104 27 3 . 8 Critical Kills 68 | . . . . . 3 . . 3 1 . . . . . 1 2 . . 5 6 2 37 6 2 . . Critical Parts Destroyed 125 | . . . . . 12 . 1 3 2 . . . . . 1 4 . . 2 12 1 66 19 . . 2 Melee Attacks 144 | . . . . . 33 . . 2 8 . . . . . 2 24 5 . . . . 1 6 19 21 23 Impact . | . . . . . . . . . . . . . . . . . . . . . . . . . . . Slashing 55 | . . . . . 33 . . 2 8 . . . . . 2 10 . . . . . . . . . . Piercing 89 | . . . . . . . . . . . . . . . . 14 5 . . . . 1 6 19 21 23 Sneak Attacks 10 | . . . . . . . . . 2 . . . . . 1 4 . . . . . . . 1 1 1 Combat Hostiles . | . . . . . . . . . . . . . . . . . . . . . . . . . . . Follow-up Attacks . | . . . . . . . . . . . . . . . . . . . . . . . . . . . Damage Inflicted 59177 | 83 213 491 749 515 2756 . 918 4256 4301 254 38 . 144 1681 4075 1769 1963 . 2104 2392 861 11557 11081 605 1165 5206 Guns 25731 | 83 213 313 714 330 750 . 918 2132 2688 . . . 144 951 551 555 324 . 1596 2392 861 3281 5468 . . 1467 Cannons 17892 | . . . . . . . . 650 1274 254 38 . . 241 2520 586 557 . . . . 7923 1954 90 109 1696 Explosions 10040 | . . 178 35 185 68 . . 1452 45 . . . . 489 896 . 1056 . 473 . . 343 3616 . 744 460 Melee 5361 | . . . . . 1938 . . . 291 . . . . . 101 628 . . . . . . 34 515 272 1582 Ramming 153 | . . . . . . . . 22 3 . . . . . 7 . 26 . 35 . . 10 9 . 40 1 Kinetic 33142 | 33 112 313 714 330 750 . 918 1549 2763 . . . 144 951 551 555 324 . 1596 2392 861 10051 6832 . . 1403 Thermal 3533 | 50 101 . . . . . . 726 363 . . . . 109 571 . 87 . . . . 775 261 . 426 64 Explosive 3592 | . . 178 35 185 68 . . 1376 . . . . . . 191 . . . . . . 56 1503 . . . Electromagnetic 11700 | . . . . . . . . 583 881 254 38 . . 621 2654 586 1526 . 473 . . 665 2442 90 427 460 Impact . | . . . . . . . . . . . . . . . . . . . . . . . . . . . Slashing 2652 | . . . . . 1938 . . . 291 . . . . . 101 322 . . . . . . . . . . Piercing 2709 | . . . . . . . . . . . . . . . . 306 . . . . . . 34 515 272 1582 Phasic 1696 | . . . . . . . . . . . . . . . . . . . . . . . . . . 1696 Highest Corruption 25 | . . . . . . . . . 10 10 10 10 . . 2 2 2 2 3 1 1 13 3 2 10 25 Average Corruption 4 | . . . . . . . . . 3 10 10 10 . . 1 2 2 2 2 1 1 6 2 1 7 14 Corruption Purged . | . . . . . . . . . . . . . . . . . . . . . . . . . . . Effects 361 | . . . . . . . . . 56 13 13 6 . . 4 16 9 1 4 . 2 109 14 2 23 89 Message Errors 78 | . . . . . . . . . 15 . 2 . . . 1 4 3 . 1 . 1 25 3 1 5 17 Matter Fused 39 | . . . . . . . . . 6 1 4 . . . . . . . . . . 14 3 . 1 10 Heat Flow Errors 28 | . . . . . . . . . 6 1 1 . . . . 1 2 . 1 . . 7 1 . 1 7 Energy Discharges 29 | . . . . . . . . . 4 2 . 2 . . 1 5 2 . . . . 6 . 1 3 3 Parts Rejected 2 | . . . . . . . . . . . . . . . . . . . . . . 1 . . . 1 Data Loss (minor) 31 | . . . . . . . . . 8 . 1 1 . . . 2 . 1 1 . . 5 . . 4 8 Data Loss (major) 12 | . . . . . . . . . . 3 2 . . . . . . . . . . 4 . . 2 1 Misfires 5 | . . . . . . . . . 1 . . 1 . . . . . . . . . 2 . . . 1 Alerts 3 | . . . . . . . . . . 1 . . . . . . . . . . . 1 . . . 1 Misdirections 32 | . . . . . . . . . . 4 2 2 . . . . . . . . . 3 . . 6 15 Targeting Errors 89 | . . . . . . . . . 13 1 1 . . . 1 3 . . 1 . 1 36 6 . 1 25 Weapon Failures 13 | . . . . . . . . . 3 . . . . . 1 1 2 . . . . 5 1 . . . Overload Shots . | . . . . . . . . . . . . . . . . . . . . . . . . . . . Overflow Damage 1428 | . . 10 . 23 . . . 103 50 . . . . . 114 127 . . 24 . . 99 166 120 205 387 Projectiles 275 | . . . . . . . . 23 50 . . . . . 29 . . . . . . 69 62 . . 42 Explosions 411 | . . 10 . 23 . . . 80 . . . . . . 85 . . . 24 . . 30 104 . 55 . Melee 742 | . . . . . . . . . . . . . . . . 127 . . . . . . . 120 150 345 Knockbacks 75 | . . . . . . . . . . . . . . . . . . . 1 . . 67 7 . . . Impact 1 | . . . . . . . . . . . . . . . . . . . 1 . . . . . . . Kinetic 71 | . . . . . . . . . . . . . . . . . . . . . . 65 6 . . . Secondary 3 | . . . . . . . . . . . . . . . . . . . . . . 2 1 . . . Self-Inflicted Damage 922 | . . . 29 20 . . . 178 56 . . . . 86 194 . . . 181 . . 79 52 . 16 31 Shots 25 | . . . 1 1 . . . 6 1 . . . . 4 3 . . . 2 . . 1 2 . . 4 Rammed 15 | . . . . . . . . 2 2 . . . . . 1 . 1 . 1 . . 1 1 . 5 1 Targets Rammed 16 | . . . . . . . . 3 2 . . . . . 1 . 1 . 1 . . 1 1 . 5 1 Kicked . | . . . . . . . . . . . . . . . . . . . . . . . . . . . Crushed 1 | . . . . . . . . 1 . . . . . . . . . . . . . . . . . . Highest Temperature 402 | 45 66 3 6 . . . 9 306 320 258 342 . 36 220 268 243 198 . 206 252 . 318 288 2 212 402 Average Temperature 79 | 23 23 3 6 . . . 3 73 89 99 130 . 14 48 93 99 109 . 38 89 . 72 88 2 52 138 Received Heat Transfer 7210 | . 30 132 126 . . . 270 1197 387 . . . 81 468 339 171 133 . 171 219 . 1254 1194 198 66 774 Effects 5 | . . . . . . . . 1 . . . . . . . 1 . . . . . 2 . . . 1 Shutdowns 1 | . . . . . . . . . . . . . . . . . . . . . . . . . . 1 Energy Bleed 3 | . . . . . . . . 1 . . . . . . . . . . . . . 2 . . . . Interference 1 | . . . . . . . . . . . . . . . . 1 . . . . . . . . . . Siege Activations 17 | . . . . . . . . . . . . . . . . . . . . . . 13 3 . . 1 Total Turns 380 | . . . . . . . . . . . . . . . . . . . . . . 277 63 . . 40 Longest Duration 40 | . . . . . . . . . . . . . . . . . . . . . . 34 27 . . 40 Robots Corrupted 36 | . . . . . . . . . 2 1 . . . 3 10 1 6 . . . . 3 9 1 . . Combat Hostiles 34 | . . . . . . . . . 2 1 . . . 3 8 1 6 . . . . 3 9 1 . . Parts Fried 90 | . . . . . . . . 4 5 2 . . . 5 21 4 11 . 1 . . 6 26 1 3 1 Impact Corruptions . | . . . . . . . . . . . . . . . . . . . . . . . . . . . Robots Melted . | . . . . . . . . . . . . . . . . . . . . . . . . . . . Combat Hostiles . | . . . . . . . . . . . . . . . . . . . . . . . . . . . Parts Melted 10 | 1 . . . . . . . . 1 . . . . . . 1 3 . . 2 . 1 1 . . . Heat Transferred 3581 | 148 296 . . . . . . 1062 457 . . . . 50 400 . 100 . . . . 475 257 . 300 36 Parts Sabotaged 7 | . . . . . . . . . . . . . . . . . . . . . . 4 3 . . . Parts Stolen . | . . . . . . . . . . . . . . . . . . . . . . . . . . . Parts Stripped . | . . . . . . . . . . . . . . . . . . . . . . . . . . . Power Chain Reactions 19 | . . . . . . . . 1 1 . . . . . 7 . 1 . 1 . . 1 3 . 1 3 Missiles Intercepted 11 | . . . . . . . . . . . . . . . . . . . . . . . . . . 11 Alert | -11 -10 -10 -9 -9 -9 -8 -8 -8 -7 -7 -7 -7 -6 -6 -5 -5 -5 -5 -5 -4 -4 -4 -3 -2 -1 -1 ------- Run | Scr Mat Min Mat Min Exi Min Mat Sto Fac Low Low Zio Pro Fac Fac Ext Cet Arc Hub Fac Was Fac Res Res Acc Com Peak Influence 3562 | 5 96 127 169 193 . . 203 520 801 . . . . 531 1107 1736 2489 1100 1533 988 336 2006 2286 1814 1389 3562 Initial 1248 | . 3 37 . 65 . . . . 79 . . . . 52 259 541 972 1100 385 751 332 95 1053 1248 1100 799 Average 726 | 3 42 66 75 167 . . 100 215 269 . . . . 349 686 791 1677 1100 486 848 238 1122 1482 1443 1228 1838 Maximum Alert Level 5 | . . . . . . . 1 2 3 . . . . 2 4 5 5 4 4 3 1 5 5 5 4 5 Low Security (%) 29 | 100 100 100 100 100 . 100 83 48 55 . . . . 29 . . . . . . 48 4 . . . . Level 1 11 | . . . . . . . 16 44 11 . . . . 21 18 . . . 39 . 51 5 . . . . Level 2 15 | . . . . . . . . 6 26 . . . . 49 28 50 . . 58 . . 12 . . . . Level 3 17 | . . . . . . . . . 6 . . . . . 49 32 4 . 1 100 . 30 18 . . 28 Level 4 15 | . . . . . . . . . . . . . . . 3 14 39 100 . . . 23 50 66 100 20 Level 5 6 | . . . . . . . . . . . . . . . . 2 46 . . . . 23 3 19 . 4 High Security 5 | . . . . . . . . . . . . . . . . . 9 . . . . . 27 14 . 46 Max Security . | . . . . . . . . . . . . . . . . . . . . . . . . . . . Squads Dispatched 110 | . 1 . 1 . . . 2 5 15 . . . . 5 9 2 4 . 2 4 . 18 19 3 3 17 Investigation 15 | . . . . . . . 1 1 4 . . . . 1 2 . . . . 1 . 3 . 1 . 1 Extermination 18 | . . . . . . . . . 5 . . . . 2 1 . . . 1 1 . 4 2 . 1 1 Reinforcement 20 | . 1 . 1 . . . 1 2 1 . . . . . 3 . . . 1 1 . 5 1 2 1 . Assault 53 | . . . . . . . . 2 1 . . . . 2 3 2 4 . . 1 . 6 16 . 1 15 Garrison 4 | . . . . . . . . . 4 . . . . . . . . . . . . . . . . . Intercept . | . . . . . . . . . . . . . . . . . . . . . . . . . . . Construction Impeded 5 | . . . . . . . . . . . . . . . 1 . . . . . . 3 1 . . . Haulers Reinforced 4 | . . . . . . . . . 1 . . . . . 2 . . . . 1 . . . . . . Stealth | -11 -10 -10 -9 -9 -9 -8 -8 -8 -7 -7 -7 -7 -6 -6 -5 -5 -5 -5 -5 -4 -4 -4 -3 -2 -1 -1 --------- Run | Scr Mat Min Mat Min Exi Min Mat Sto Fac Low Low Zio Pro Fac Fac Ext Cet Arc Hub Fac Was Fac Res Res Acc Com Distress Signals 21 | . . . 3 . . . 1 2 2 . . . . 1 . 1 2 . . . . 1 4 1 2 1 Communications Jammed 26 | . . . . . . . . 26 . . . . . . . . . . . . . . . . . . Distress Signals 26 | . . . . . . . . 26 . . . . . . . . . . . . . . . . . . Times Spotted 847 | . 7 7 19 6 25 . 14 60 61 3 . . 10 31 62 54 61 2 15 20 . 93 144 28 52 73 Peak Tracking Total 41 | . 2 3 5 3 9 . 4 8 6 1 . . 7 10 6 10 12 7 4 8 . 7 41 17 23 17 Tactical Retreats 91 | . . . 4 1 11 . 3 12 5 . . . . 5 12 . . 1 . 1 . 5 6 2 15 8 Traps | -11 -10 -10 -9 -9 -9 -8 -8 -8 -7 -7 -7 -7 -6 -6 -5 -5 -5 -5 -5 -4 -4 -4 -3 -2 -1 -1 ------- Run | Scr Mat Min Mat Min Exi Min Mat Sto Fac Low Low Zio Pro Fac Fac Ext Cet Arc Hub Fac Was Fac Res Res Acc Com Traps Triggered 16 | . 2 . . . . . . . 7 . 1 . . . . 1 . . 1 2 . . . . 1 1 Indirectly 1 | . . . . . . . . . . . . . . . . . . . 1 . . . . . . . Trap Hack Attempts . | . . . . . . . . . . . . . . . . . . . . . . . . . . . Triggered . | . . . . . . . . . . . . . . . . . . . . . . . . . . . Disarmed . | . . . . . . . . . . . . . . . . . . . . . . . . . . . Reprogrammed . | . . . . . . . . . . . . . . . . . . . . . . . . . . . Reused . | . . . . . . . . . . . . . . . . . . . . . . . . . . . Traps Extracted . | . . . . . . . . . . . . . . . . . . . . . . . . . . . Installed . | . . . . . . . . . . . . . . . . . . . . . . . . . . . Triggered 3 | . . . . . . . . 1 . . 2 . . . . . . . . . . . . . . . Machines | -11 -10 -10 -9 -9 -9 -8 -8 -8 -7 -7 -7 -7 -6 -6 -5 -5 -5 -5 -5 -4 -4 -4 -3 -2 -1 -1 ---------- Run | Scr Mat Min Mat Min Exi Min Mat Sto Fac Low Low Zio Pro Fac Fac Ext Cet Arc Hub Fac Was Fac Res Res Acc Com Machines Disabled 89 | . . . 2 1 14 . . 7 3 . . . . 7 9 5 5 . 23 . . 7 2 . 2 2 Max in Single Turn 14 | . . . 2 1 2 . . 1 1 . . . . 5 2 1 1 . 14 . . 2 1 . 1 1 Garrison Access 6 | . . . . . . . . . 1 . . . . 1 1 . . . . . . 2 . 1 . . Network Hub 3 | . . . . . . . . . . . . . . . . . . . 3 . . . . . . . Machines Sabotaged . | . . . . . . . . . . . . . . . . . . . . . . . . . . . Garrisons Compromised . | . . . . . . . . . . . . . . . . . . . . . . . . . . . Overloaded Fab Kills . | . . . . . . . . . . . . . . . . . . . . . . . . . . . Fab Network Shutdowns . | . . . . . . . . . . . . . . . . . . . . . . . . . . . Hacking | -11 -10 -10 -9 -9 -9 -8 -8 -8 -7 -7 -7 -7 -6 -6 -5 -5 -5 -5 -5 -4 -4 -4 -3 -2 -1 -1 --------- Run | Scr Mat Min Mat Min Exi Min Mat Sto Fac Low Low Zio Pro Fac Fac Ext Cet Arc Hub Fac Was Fac Res Res Acc Com Machines Accessed 47 | . 1 2 4 1 2 . 2 6 17 . . . . . . . . . . 2 . 7 1 1 1 . Terminals 28 | . 1 1 4 1 . . 1 6 14 . . . . . . . . . . . . . . . . . Fabricators 4 | . . . . . . . . . 2 . . . . . . . . . . 2 . . . . . . Repair Stations 6 | . . . . . . . . . 1 . . . . . . . . . . . . 4 1 . . . Recycling Units 1 | . . . . . . . 1 . . . . . . . . . . . . . . . . . . . Scanalyzers 1 | . . . . . . . . . . . . . . . . . . . . . . 1 . . . . Garrison Access 4 | . . . . . . . . . . . . . . . . . . . . . . 2 . 1 1 . Total Hacks 112 | . 2 3 11 3 2 . 2 18 36 . . . . . . . . . . 5 . 26 2 1 1 . Successful 54 | . 2 1 7 1 2 . 1 11 13 . . . . . . . . . . 2 . 11 1 1 1 . Failed 56 | . . 2 3 2 . . 1 6 23 . . . . . . . . . . 3 . 15 1 . . . Catastrophic 13 | . . . . 1 . . 1 1 8 . . . . . . . . . . . . 1 1 . . . Database Lockouts 2 | . . . 1 . . . . 1 . . . . . . . . . . . . . . . . . . Manual 208 | . 2 2 10 4 1 . 1 14 16 . . . . 8 16 29 14 . 13 9 . 11 13 13 28 4 Terminals 66 | . 2 2 11 3 . . 1 18 29 . . . . . . . . . . . . . . . . . Fabricators 10 | . . . . . . . . . 5 . . . . . . . . . . 5 . . . . . . Repair Stations 25 | . . . . . . . . . 2 . . . . . . . . . . . . 21 2 . . . Recycling Units 1 | . . . . . . . 1 . . . . . . . . . . . . . . . . . . . Scanalyzers 1 | . . . . . . . . . . . . . . . . . . . . . . 1 . . . . Garrison Access 6 | . . . . . . . . . . . . . . . . . . . . . . 4 . 1 1 . Terminal Hacks 15 | . . 1 2 . 2 . . 6 4 . . . . . . . . . . . . . . . . . Record 1 | . . . . . 1 . . . . . . . . . . . . . . . . . . . . . Robot Schematic 1 | . . . . . . . . 1 . . . . . . . . . . . . . . . . . . Robot Analysis 1 | . . . 1 . . . . . . . . . . . . . . . . . . . . . . . Open Door 2 | . . 1 . . . . . 1 . . . . . . . . . . . . . . . . . . Level Access Points 2 | . . . . . . . . 1 1 . . . . . . . . . . . . . . . . . Branch Access Points 2 | . . . 1 . . . . . 1 . . . . . . . . . . . . . . . . . Terminal Index 1 | . . . . . . . . . 1 . . . . . . . . . . . . . . . . . Unreport Threat 3 | . . . . . . . . 2 1 . . . . . . . . . . . . . . . . . Locate Traps 1 | . . . . . . . . 1 . . . . . . . . . . . . . . . . . . EX-Prototype ID Bank 1 | . . . . . 1 . . . . . . . . . . . . . . . . . . . . . Fabricator Hacks 5 | . . . . . . . . . 4 . . . . . . . . . . 1 . . . . . . Load Schematic 2 | . . . . . . . . . 1 . . . . . . . . . . 1 . . . . . . Build 3 | . . . . . . . . . 3 . . . . . . . . . . . . . . . . . Repair Station Hacks 10 | . . . . . . . . . 1 . . . . . . . . . . . . 8 1 . . . Scan Component 7 | . . . . . . . . . 1 . . . . . . . . . . . . 5 1 . . . Repair 3 | . . . . . . . . . . . . . . . . . . . . . . 3 . . . . Recycling Unit Hacks . | . . . . . . . . . . . . . . . . . . . . . . . . . . . Scanalyzer 1 | . . . . . . . . . . . . . . . . . . . . . . 1 . . . . Insert Component 1 | . . . . . . . . . . . . . . . . . . . . . . 1 . . . . Garrison Access Hacks . | . . . . . . . . . . . . . . . . . . . . . . . . . . . Unauthorized Hacks 23 | . 2 . 5 1 . . 1 5 4 . . . . . . . . . . 1 . 2 . 1 1 . Terminals 17 | . 2 . 5 1 . . . 5 4 . . . . . . . . . . . . . . . . . Track 12 | . 1 . 4 1 . . . 3 3 . . . . . . . . . . . . . . . . . Botnet 5 | . 1 . 1 . . . . 2 1 . . . . . . . . . . . . . . . . . Fabricators 1 | . . . . . . . . . . . . . . . . . . . . 1 . . . . . . Download 1 | . . . . . . . . . . . . . . . . . . . . 1 . . . . . . Repair Stations . | . . . . . . . . . . . . . . . . . . . . . . . . . . . Recycling Units 1 | . . . . . . . 1 . . . . . . . . . . . . . . . . . . . Tunnel 1 | . . . . . . . 1 . . . . . . . . . . . . . . . . . . . Scanalyzers . | . . . . . . . . . . . . . . . . . . . . . . . . . . . Garrison Access 4 | . . . . . . . . . . . . . . . . . . . . . . 2 . 1 1 . Reprogram 1 | . . . . . . . . . . . . . . . . . . . . . . . . . 1 . Jam 3 | . . . . . . . . . . . . . . . . . . . . . . 2 . 1 . . Data Cores Recovered 3 | . . . . . . . . . . . . . . . . 1 . . 1 . . . . . 1 . Used . | . . . . . . . . . . . . . . . . . . . . . . . . . . . Hacking Detections 34 | . 1 1 3 1 . . 1 5 17 . . . . . . . . . . 1 . 3 1 . . . Full Trace Events 4 | . . . . . . . . . 4 . . . . . . . . . . . . . . . . . Feedback Events . | . . . . . . . . . . . . . . . . . . . . . . . . . . . Feedback Blocked . | . . . . . . . . . . . . . . . . . . . . . . . . . . . Robot Schematics Acquired 1 | . . . . . . . . 1 . . . . . . . . . . . . . . . . . . Robots Built . | . . . . . . . . . . . . . . . . . . . . . . . . . . . Matter . | . . . . . . . . . . . . . . . . . . . . . . . . . . . Time . | . . . . . . . . . . . . . . . . . . . . . . . . . . . Total Robot Build Rating . | . . . . . . . . . . . . . . . . . . . . . . . . . . . Part Schematics Acquired 27 | . . . . . . . . . . . . . . . . . . . 10 1 . 16 . . . . Parts Built 3 | . . . . . . . . . 3 . . . . . . . . . . . . . . . . . Matter 636 | . . . . . . . . . 636 . . . . . . . . . . . . . . . . . Time 159 | . . . . . . . . . 159 . . . . . . . . . . . . . . . . . Total Part Build Rating 18 | . . . . . . . . . 18 . . . . . . . . . . . . . . . . . Parts Repaired 3 | . . . . . . . . . . . . . . . . . . . . . . 3 . . . . Time 312 | . . . . . . . . . . . . . . . . . . . . . . 312 . . . . Parts Recycled . | . . . . . . . . . . . . . . . . . . . . . . . . . . . Recycled Matter . | . . . . . . . . . . . . . . . . . . . . . . . . . . . Retrieved Matter . | . . . . . . . . . . . . . . . . . . . . . . . . . . . Retrieved Components . | . . . . . . . . . . . . . . . . . . . . . . . . . . . Parts Scanalyzed . | . . . . . . . . . . . . . . . . . . . . . . . . . . . Part Schematics Acquired . | . . . . . . . . . . . . . . . . . . . . . . . . . . . Parts Damaged . | . . . . . . . . . . . . . . . . . . . . . . . . . . . Bothacking | -11 -10 -10 -9 -9 -9 -8 -8 -8 -7 -7 -7 -7 -6 -6 -5 -5 -5 -5 -5 -4 -4 -4 -3 -2 -1 -1 ------------ Run | Scr Mat Min Mat Min Exi Min Mat Sto Fac Low Low Zio Pro Fac Fac Ext Cet Arc Hub Fac Was Fac Res Res Acc Com Used RIF Installer . | . . . . . . . . . . . . . . . . . . . . . . . . . . . Robots Hacked . | . . . . . . . . . . . . . . . . . . . . . . . . . . . Non-combat . | . . . . . . . . . . . . . . . . . . . . . . . . . . . Combat . | . . . . . . . . . . . . . . . . . . . . . . . . . . . Robot Hacks Applied . | . . . . . . . . . . . . . . . . . . . . . . . . . . . Relay Couplers Released 8 | . . . . . . . . . 3 . . . . 3 2 . . . . . . . . . . . Machine Destruction 8 | . . . . . . . . . 3 . . . . 3 2 . . . . . . . . . . . Robots Rewired 19 | . . . . . . . . . . . . . . . . 19 . . . . . . . . . . Allies Hacked 3 | . . . . . . . . . . . . . . . . . 1 . . 1 . . . . . 1 Hacks Repelled . | . . . . . . . . . . . . . . . . . . . . . . . . . . . Allies | -11 -10 -10 -9 -9 -9 -8 -8 -8 -7 -7 -7 -7 -6 -6 -5 -5 -5 -5 -5 -4 -4 -4 -3 -2 -1 -1 -------- Run | Scr Mat Min Mat Min Exi Min Mat Sto Fac Low Low Zio Pro Fac Fac Ext Cet Arc Hub Fac Was Fac Res Res Acc Com Total Allies 116 | . . . . . . . . 2 3 . . 4 . 3 12 34 9 . . 1 . . 8 2 8 30 Largest Group 24 | . . . . . . . . 2 3 . . 4 4 3 7 24 19 . . 1 . . 5 2 2 24 Highest-Rated Group 2597 | . . . . . . . . 62 93 . . 152 152 84 238 877 1018 . . 32 . . 428 100 244 2597 Highest-Rated Ally 268 | . . . . . . . . 31 31 . . 40 40 37 85 156 156 . . 32 . . 96 50 122 268 Zionite Dispatches 28 | . . . . . . . . . . . . . . 1 4 6 3 . . 1 . . 3 4 6 . Heavy 2 | . . . . . . . . . . . . . . . 1 . . . . . . . . . 1 . Light 3 | . . . . . . . . . . . . . . . . 1 . . . . . . 2 . . . Recon 6 | . . . . . . . . . . . . . . . . 2 1 . . . . . . 3 . . Fire 6 | . . . . . . . . . . . . . . 1 2 2 1 . . . . . . . . . Hacker 2 | . . . . . . . . . . . . . . . 1 . . . . . . . 1 . . . Demo 2 | . . . . . . . . . . . . . . . . . . . . . . . . 1 1 . Thermal Resupply 2 | . . . . . . . . . . . . . . . . . 1 . . 1 . . . . . . Kinetic Resupply 1 | . . . . . . . . . . . . . . . . . . . . . . . . . 1 . Trap Resupply 3 | . . . . . . . . . . . . . . . . 1 . . . . . . . . 2 . Infowar Resupply 1 | . . . . . . . . . . . . . . . . . . . . . . . . . 1 . Total Orders 62 | . . . . . 5 . . . . 4 4 . 1 . . . 24 . . 5 . 7 6 4 1 1 STAY 13 | . . . . . 2 . . . . . . . . . . . 10 . . . . . . . 1 . FOLLOW 8 | . . . . . . . . . . . . . . . . . 8 . . . . . . . . . DROP 2 | . . . . . . . . . . . . . . . . . 1 . . 1 . . . . . . PICKUP 4 | . . . . . . . . . . . . . . . . . 4 . . . . . . . . . COLLECT 1 | . . . . . . . . . . . . . . . . . 1 . . . . . . . . . EXPLORE 17 | . . . . . . . . . . . . . . . . . . . . 2 . 5 5 4 . 1 RETURN 17 | . . . . . 3 . . . . 4 4 . 1 . . . . . . 2 . 2 1 . . . Ally Attacks 919 | . . . . . 6 . . 14 31 5 . . 5 4 47 243 196 . . . . . 57 10 4 297 Total Damage 41027 | . . . . . . . . 255 457 . . . 173 63 1846 4784 6007 . . . . . 2547 672 307 23916 Kills 209 | . . . . . . . . 1 7 . . . 1 1 15 40 37 . . . . . 14 4 2 87 Allies Corrupted 5 | . . . . . . . . . . . . . . . . . . . . . . . . . 1 4 Allies Melted . | . . . . . . . . . . . . . . . . . . . . . . . . . . . Turrets Deployed 3 | . . . . . . . . 1 . . . . . . . . 1 . . . . . 1 . . . Intel | -11 -10 -10 -9 -9 -9 -8 -8 -8 -7 -7 -7 -7 -6 -6 -5 -5 -5 -5 -5 -4 -4 -4 -3 -2 -1 -1 ------- Run | Scr Mat Min Mat Min Exi Min Mat Sto Fac Low Low Zio Pro Fac Fac Ext Cet Arc Hub Fac Was Fac Res Res Acc Com Robot Analysis Total 1 | . . . 1 . . . . . . . . . . . . . . . . . . . . . . . Derelict Logs Recovered 7 | . . 1 . . . . . . . 1 2 1 2 . . . . . . . . . . . . . Drone Launches 42 | . . . . . 9 . . . . 9 4 . 1 . . . . . . 3 . 5 5 4 . 2 Drone Recoveries 20 | . . . . . 3 . . . . 4 4 . 1 . . . . . . 2 . 3 3 . . . Zionite Intel Received 11 | . . . . . . . . . . . . . . 1 1 2 1 . 2 1 . 1 1 . 1 . Main Access 1 | . . . . . . . . . . . . . . 1 . . . . . . . . . . . . Branch Access 1 | . . . . . . . . . . . . . . . 1 . . . . . . . . . . . Component Schematics 1 | . . . . . . . . . . . . . . . . . . . . . . 1 . . . . Prototype Schematics 1 | . . . . . . . . . . . . . . . . . . . 1 . . . . . . . Unaware Analyses 2 | . . . . . . . . . . . . . . . . 1 . . 1 . . . . . . . Trap Installations 2 | . . . . . . . . . . . . . . . . . . . . 1 . . 1 . . . Active Terminals 2 | . . . . . . . . . . . . . . . . 1 . . . . . . . . 1 . Depthwide Sectors/-1 1 | . . . . . . . . . . . . . . . . . 1 . . . . . . . . . Exploration | -11 -10 -10 -9 -9 -9 -8 -8 -8 -7 -7 -7 -7 -6 -6 -5 -5 -5 -5 -5 -4 -4 -4 -3 -2 -1 -1 ------------- Run | Scr Mat Min Mat Min Exi Min Mat Sto Fac Low Low Zio Pro Fac Fac Ext Cet Arc Hub Fac Was Fac Res Res Acc Com Turns Passed 26536 | 56 302 905 669 211 3528 249 467 1724 3025 208 253 2112 278 668 1279 1562 899 61 523 698 773 2665 1378 431 532 1080 Spaces Moved 14612 | 32 184 524 250 84 1811 138 175 617 1642 166 226 1488 199 361 668 775 454 38 261 286 450 1074 612 525 693 879 Core 1641 | . . . . . . . . . . . . . . . . . . . . . . . 48 515 664 414 Treads 6102 | . . 75 99 84 1811 138 175 617 170 . . . . . 1 . 320 38 261 286 450 1074 494 4 2 3 Legs 500 | 32 . . . . . . . . . . . . . . . . . . . . . . . 6 . 462 Wheels 6369 | . 184 449 151 . . . . . 1472 166 226 1488 199 361 667 775 134 . . . . . 70 . 27 . Hover . | . . . . . . . . . . . . . . . . . . . . . . . . . . . Flight . | . . . . . . . . . . . . . . . . . . . . . . . . . . . Fastest Speed 50 | 120 90 90 150 180 160 180 180 180 110 110 110 110 110 110 130 115 140 160 160 160 160 160 50 50 50 50 Average Speed 134 | 120 111 152 173 180 168 180 180 180 131 110 110 111 117 122 136 135 154 160 160 160 160 160 142 58 55 89 Slowest Speed 250 | 120 150 180 180 180 200 180 180 180 180 110 110 130 130 130 180 150 160 160 160 160 160 180 160 145 250 170 Overloaded Moves . | . . . . . . . . . . . . . . . . . . . . . . . . . . . Propulsion Burnouts . | . . . . . . . . . . . . . . . . . . . . . . . . . . . Robots Hopped 3 | . . . . . . . . . . . . . . . . . 2 . . . . . 1 . . . Cave-ins Triggered . | . . . . . . . . . . . . . . . . . . . . . . . . . . . Exploration Rate (%) 45 | 4 23 96 34 17 91 30 17 76 58 40 49 91 42 9 12 84 78 71 35 11 96 40 38 33 21 29 Regions Visited 26 Branch Regions 14 Pre-discovered Areas 11 | . . 2 . . 1 . 1 . . . . 1 . . . . 6 . . . . . . . . . Known Exits Taken 9 | . . . 1 . . . . 1 1 1 . . 1 1 1 . . . . . . 1 . 1 . . Unknown Exits Taken 15 | 1 1 1 . 1 1 1 1 . . . 1 1 . . . 1 1 1 1 . . . 1 . 1 . Scrap Searched 10 | . . 1 . . . . . . . 1 2 4 2 . . . . . . . . . . . . . Spaces Dug 120 | . . . . 5 . . . 6 14 . . . 1 4 1 9 . . . 7 . 30 15 9 9 10 Terrain Destroyed 1113 | . . 12 6 10 5 . . 48 20 . . . 2 46 70 11 5 . 497 53 3 212 73 9 18 13 Melee 43 | . . . . . . . . . 5 . . . . . 1 7 . . . . . . 4 9 7 10 Projectile 335 | . . . . . 5 . . 13 12 . . . 2 6 2 4 1 . 20 53 3 168 41 . 2 3 AOE 735 | . . 12 6 10 . . . 35 3 . . . . 40 67 . 4 . 477 . . 44 28 . 9 . Terrain Rammed 1 | . . . . . . . . . . . . . . . . . . . . . . . . . 1 . Walls Destroyed . | . . . . . . . . . . . . . . . . . . . . . . . . . . . Machines Disabled . | . . . . . . . . . . . . . . . . . . . . . . . . . . . Actions | -11 -10 -10 -9 -9 -9 -8 -8 -8 -7 -7 -7 -7 -6 -6 -5 -5 -5 -5 -5 -4 -4 -4 -3 -2 -1 -1 --------- Run | Scr Mat Min Mat Min Exi Min Mat Sto Fac Low Low Zio Pro Fac Fac Ext Cet Arc Hub Fac Was Fac Res Res Acc Com Total 19220 | 39 256 601 413 111 2191 139 240 1020 2280 182 229 1953 229 477 878 1193 596 38 306 444 479 1586 864 613 803 1060 Wait 1645 | 2 41 16 92 . 126 2 9 179 317 . 3 379 17 14 35 19 48 . 15 47 . 163 35 16 50 20 Move 14581 | 31 183 523 249 83 1810 137 174 616 1641 165 225 1487 198 360 667 774 449 37 260 286 449 1073 609 524 692 879 Hop 3 | . . . . . . . . . . . . . . . . . 2 . . . . . 1 . . . Pick Up 289 | . 9 27 14 4 62 . 3 22 27 2 . 32 2 5 9 5 11 . 1 11 2 17 11 5 1 7 Fast Attach 282 | 1 3 3 2 . 14 . 3 12 25 . . 10 . 7 15 27 8 . . 15 6 34 14 24 10 49 Attach 119 | . . . 4 1 8 . 4 22 9 1 . 6 1 7 5 1 2 . . 3 1 12 17 2 4 9 Detach 53 | . . . 1 . 3 . . 2 4 . . 1 . 1 1 1 4 . . 3 2 7 3 8 6 6 Swap 243 | . 6 3 6 2 13 . 2 18 36 3 . 4 1 9 24 22 12 1 1 17 2 40 16 1 . 4 Drop 418 | . 3 12 8 3 62 . 2 25 51 2 . 34 2 7 23 30 23 . 1 22 7 29 31 10 7 24 Fire 1142 | 5 11 17 37 18 60 . 43 119 144 9 1 . 8 67 96 27 31 . 27 40 10 209 118 3 6 36 Melee 142 | . . . . . 33 . . 2 8 . . . . . 2 22 5 . . . . 1 6 19 21 23 Ram 2 | . . . . . . . . . . . . . . . . . . . . . . . 1 . 1 . Kick . | . . . . . . . . . . . . . . . . . . . . . . . . . . . Crush 15 | . . . . . . . . 3 2 . . . . . 1 . 1 . 1 . . 1 . . 5 1 Escape Stasis 35 | . . . . . . . . . 16 . . . . . . 15 . . . . . . 2 . . 2 Rewire 250 | . . . . . . . . . . . . . . . . 250 . . . . . . . . . . Trap . | . . . . . . . . . . . . . . . . . . . . . . . . . . . Miscellaneous 1 | . . . . . . . . . . . . . . . . . . . . . . . . 1 . . Route ------- -11/Scrapyard -10/Materials (discovered 2 exits: *Mat / *Min) -10/Mines (discovered 2 exits: *Mat x2) -9/Materials (discovered 2 exits: *Min x2) -9/Mines -9/Exiles (discovered 2 exits: [*Min x2]) -8/Mines -8/Materials (discovered 2 exits: *Fac / *Sto) -8/Storage -7/Factory (discovered 6 exits: *Fac x4 / *Low x2) -7/Lower Caves -7/Lower Caves -7/Zion -6/Proximity Caves -6/Factory (discovered 4 exits: *Fac x4) -5/Factory (discovered 4 exits: Upp x2 / *Ext x2) -5/Extension (discovered 2 exits: *Fac / *Cet) -5/Cetus (discovered 2 exits: *Fac / [*Arc]) -5/Archives -5/Hub_04(d) -4/Factory -4/Waste -4/Factory (discovered 2 exits: *Res x2) -3/Research -2/Research -1/Access -1/Command History --------- Turn | Location | Event 1 | -11/Scrapyard | Discovered new exit (range 3) 57 | -11/Scrapyard | Entered Materials 106 | -10/Materials | Discovered new exit (range 14) 244 | -10/Materials | Discovered new exit (range 10) 359 | -10/Materials | Entered Mines 441 | -10/Mines | Learned location of Storage (-8) 485 | -10/Mines | Discovered new exit (range 14) 546 | -10/Mines | Build established: Hauler-Mutant 641 | -10/Mines | Discovered new exit (range 11) 643 | -10/Mines | Received a Rocket Launcher from a helpful Derelict 732 | -10/Mines | Learned location of Zion (-7) 964 | -10/Mines | Found the Drone Emporium 990 | -10/Mines | Found Prototype Device 990 | -10/Mines | Identified Bomb Drone Bay 1264 | -10/Mines | Entered Materials 1264 | -9/Materials | Evolved 2 slots: Propulsion x1, Utility x1 1341 | -9/Materials | Identified exit to Mines 1492 | -9/Materials | Central database locked down 1933 | -9/Materials | Entered Mines 2004 | -9/Mines | YI-UF0 nonchalantly dropped a Grenade Launcher on the ground 2050 | -9/Mines | Found Prototype Storage 2135 | -9/Mines | Deemed a non-threat by the Exiles lab entrance 2137 | -9/Mines | Discovered new exit (range 5) 2144 | -9/Mines | Entered Exiles 2210 | -9/Exiles | Discovered new exit (range 14) 2242 | -9/Exiles | Met 8R-AWN 2272 | -9/Exiles | Met EX-HEX 2321 | -9/Exiles | Met EX-BIN 2440 | -9/Exiles | Met EX-DEC 2753 | -9/Exiles | Aligned with FarCom system 2755 | -9/Exiles | Given EX-Vault access code 2796 | -9/Exiles | Opened EX-Vault 2811 | -9/Exiles | Found Deploy-a-Sentry 2814 | -9/Exiles | Found Deploy-a-Sentry 2817 | -9/Exiles | Found Deploy-a-Sentry 2836 | -9/Exiles | Found Cloak of Protection 2844 | -9/Exiles | Found Longsword +1 2882 | -9/Exiles | Warned to stay clear of 0b10 Research branches 2997 | -9/Exiles | Discovered new exit (range 14) 3314 | -9/Exiles | Build established: Scavenger-Mutant 4009 | -9/Exiles | Identified YI-UF0's Bottomless Matter Pit 4096 | -9/Exiles | Attacked by the Exiles 4213 | -9/Exiles | Found Prototype Ballistic Gun 4252 | -9/Exiles | Destroyed 8R-AWN 4261 | -9/Exiles | Identified 8R-AWN's Boregun 4772 | -9/Exiles | Destroyed EX-BIN 4815 | -9/Exiles | Destroyed EX-HEX 5264 | -9/Exiles | Destroyed EX-DEC 5294 | -9/Exiles | Found Deploy-a-Sentry 5331 | -9/Exiles | Build established: Hauler-Mutant 5672 | -9/Exiles | Stole three prototypes: Cloak of Protection, Longsword +1, Deploy-a-Sentry 5672 | -9/Exiles | Entered Mines 5793 | -8/Mines | Discovered new exit (range 5) 5921 | -8/Mines | Entered Materials 5921 | -8/Materials | Evolved 2 slots: Propulsion x1, Utility x1 6168 | -8/Materials | Lost 3 parts (2n1w) 6201 | -8/Materials | Discovered new exit (range 4) 6292 | -8/Materials | Build established: Scavenger-Mutant 6301 | -8/Materials | Discovered new exit (range 7) 6388 | -8/Materials | Entered Storage 6583 | -8/Storage | Met a pair of Derelict thieves 6651 | -8/Storage | Central database locked down 6687 | -8/Storage | Build established: Hauler-Mutant 6723 | -8/Storage | Lost 3 parts (2n1w) 6732 | -8/Storage | Destroyed 7 combat bots 7109 | -8/Storage | Lost 5 parts (1p1n1u2w) 7180 | -8/Storage | Core integrity fell below 50% 7356 | -8/Storage | Lost 3 parts (1n2w) 7448 | -8/Storage | Lost 3 parts (2n1w) 7548 | -8/Storage | Core integrity fell below 20% 7619 | -8/Storage | Identified exit to Factory 7945 | -8/Storage | DAS Turret deployed 8112 | -8/Storage | Entered Factory 8112 | -7/Factory | Evolved 2 slots: Weapon x2 8221 | -7/Factory | Fabricated Lrn. Proton Cannon? 8318 | -7/Factory | Fabricated Lrn. Proton Cannon (x1) 8371 | -7/Factory | Fabricated Lrn. Proton Cannon (x1) 8613 | -7/Factory | Allied Derelicts emerged from ambush trap array 8829 | -7/Factory | Garrison activated, responded to threat 9389 | -7/Factory | Identified exit to Factory 10801 | -7/Factory | Garrison activated, responded to threat 10871 | -7/Factory | Identified exit to Lower Caves 10904 | -7/Factory | System corruption reached 10% 11137 | -7/Factory | Entered Lower Caves 11157 | -7/Lower Caves | Identified exit to Lower Caves 11329 | -7/Lower Caves | Spotted 3D-FA3(f) 11331 | -7/Lower Caves | Encountered a Master Thief 11345 | -7/Lower Caves | Entered another Lower Caves area 11373 | -7/Lower Caves | Learned location of 1 exit from Factory 11385 | -7/Lower Caves | Spotted B-75 Beast 11504 | -7/Lower Caves | Learned location of 1 exit from Factory 11529 | -7/Lower Caves | Encountered a Warlord checkpoint 11583 | -7/Lower Caves | Discovered new exit (range 16) 11598 | -7/Lower Caves | Entered Zion 11648 | -7/Zion | Discovered new exit (range 15) 11694 | -7/Zion | Given A8's code to call for help 11730 | -7/Zion | System corruption cleaned by Quarantine Array 11749 | -7/Zion | Received a visual enhancement algorithm 11864 | -7/Zion | Found CR-A16's Pointy Stick 11934 | -7/Zion | Learned location of Warlord (-4) 12112 | -7/Zion | Build established: Hauler-Gunner 12142 | -7/Zion | Learned Factory emergency access door positions 12145 | -7/Zion | Learned Factory machine intel 12461 | -7/Zion | Imprinted 12463 | -7/Zion | Declared Zion's savior 12652 | -7/Zion | Found Prototype Processor 12654 | -7/Zion | Found Prototype Processor 12657 | -7/Zion | Found Prototype Processor 12659 | -7/Zion | Found Prototype Processor 12661 | -7/Zion | Found Prototype Processor 12664 | -7/Zion | Found Prototype Hackware 12666 | -7/Zion | Found Prototype Processor 12668 | -7/Zion | Found Prototype Processor 12714 | -7/Zion | Identified Spectral Analyzer 12722 | -7/Zion | Identified Exp. Signal Interpreter 12739 | -7/Zion | Identified Exp. Targeting Computer 12765 | -7/Zion | Identified Exp. Melee Analysis Suite 12852 | -7/Zion | Identified Exp. Target Analyzer 12870 | -7/Zion | Identified Exp. Armor Integrity Analyzer (x2) 12889 | -7/Zion | Identified Exp. System Shield 13534 | -7/Zion | Visited the Megawrench Repair Shop 13534 | -7/Zion | Megawrench repaired 11 parts 13710 | -7/Zion | Entered Proximity Caves 13710 | -6/Proximity Caves | Accompanied by 4 allies 13913 | -6/Proximity Caves | Attracted the attention of an 0b10 checkpoint 13988 | -6/Proximity Caves | Entered Factory 13988 | -6/Factory | Accompanied by 1 ally 13988 | -6/Factory | Evolved 2 slots: Power x1, Propulsion x1 13989 | -6/Factory | Identified exit to Factory 13991 | -6/Factory | Loaded intel: 264 machine locations 14331 | -6/Factory | Retrieved Zion intel report: Main Access 14332 | -6/Factory | Zion Fire squad teleported in 14338 | -6/Factory | First assault squad dispatched 14459 | -6/Factory | Destroyed 7 combat bots 14656 | -6/Factory | Entered another Factory area 14656 | -5/Factory | Evolved 2 slots: Power x1, Propulsion x1 14657 | -5/Factory | Identified exit to Extension 14784 | -5/Factory | Spotted B-75 Beast 15045 | -5/Factory | Build established: Scavenger-Mutant 15112 | -5/Factory | Retrieved Zion intel report: Branch Access 15112 | -5/Factory | Identified exit to Upper Caves 15113 | -5/Factory | Zion Hacker squad teleported in 15122 | -5/Factory | Zion Fire squad teleported in 15170 | -5/Factory | Allies destroyed B-75 Beast 15256 | -5/Factory | First assault squad dispatched 15441 | -5/Factory | Zion Fire squad teleported in 15741 | -5/Factory | Zion Heavy squad teleported in 15935 | -5/Factory | Entered Extension 15935 | -5/Extension | Accompanied by 2 allies 16118 | -5/Extension | Zion Fire squad teleported in 16203 | -5/Extension | Retrieved Zion intel report: Unaware Analyses 16204 | -5/Extension | Zion Fire squad teleported in 16207 | -5/Extension | Rescued a captive Derelict 16209 | -5/Extension | Rescued a captive Derelict 16235 | -5/Extension | First assault squad dispatched 16260 | -5/Extension | Found Prototype Protection 16260 | -5/Extension | Identified Zio. Weapon Casing 16700 | -5/Extension | Spotted B-75 Beast 16709 | -5/Extension | Spotted B-75 Beast 16715 | -5/Extension | Allies destroyed B-75 Beast 16729 | -5/Extension | Revealed the true nature of CR-A16's Pointy Stick 16733 | -5/Extension | Allies destroyed B-75 Beast 16743 | -5/Extension | Zion Recon squad teleported in 17017 | -5/Extension | Zion Light squad teleported in 17202 | -5/Extension | Retrieved Zion intel report: Active Terminals 17208 | -5/Extension | Zion Trap Resupply teleported in 17325 | -5/Extension | Zion Recon squad teleported in 17362 | -5/Extension | Rescued A7 17425 | -5/Extension | Discovered new exit (range 10) 17426 | -5/Extension | Discovered new exit (range 6) 17446 | -5/Extension | Disrupted transfer network 17488 | -5/Extension | Terminal network hard line cut 17497 | -5/Extension | Entered Cetus 17497 | -5/Cetus | Accompanied by 15 allies (A7) 17502 | -5/Cetus | Acquired a Cetus Manufacturing Module code from A7 17521 | -5/Cetus | Spotted Cetus Guard 17521 | -5/Cetus | Spotted Cetus Guard 17523 | -5/Cetus | Spotted Cetus Guard 17529 | -5/Cetus | Allies destroyed Cetus Guard 17530 | -5/Cetus | Spotted Cetus Guard 17533 | -5/Cetus | Destroyed Cetus Guard 17537 | -5/Cetus | Destroyed Cetus Guard 17542 | -5/Cetus | Allies destroyed Cetus Guard 17622 | -5/Cetus | Started Cetus Manufacturing Module 17647 | -5/Cetus | Manufactured an Enhanced Grunt 17652 | -5/Cetus | Discovered new exit (range 21) 17652 | -5/Cetus | DAS Turret deployed 17672 | -5/Cetus | Manufactured an Enhanced Grunt 17697 | -5/Cetus | Manufactured an Enhanced Grunt 17722 | -5/Cetus | Manufactured an Enhanced Grunt 17747 | -5/Cetus | Manufactured an Enhanced Grunt 17820 | -5/Cetus | Retrieved Zion intel report: Depthwide Sectors/-1 17821 | -5/Cetus | Zion Fire squad teleported in 17857 | -5/Cetus | Zion Thermal Resupply teleported in 17878 | -5/Cetus | Escorted A7 to Cetus Mainframe 17914 | -5/Cetus | Zion Recon squad teleported in 17939 | -5/Cetus | Spotted Cetus Guard 17951 | -5/Cetus | Allies destroyed Cetus Guard 17984 | -5/Cetus | Build established: Commander-Mutant 18005 | -5/Cetus | Spotted Cetus Guard 18008 | -5/Cetus | Spotted Cetus Guard 18014 | -5/Cetus | Destroyed Cetus Guard 18018 | -5/Cetus | Destroyed Cetus Guard 18019 | -5/Cetus | Spotted Cetus Guard 18028 | -5/Cetus | Destroyed Cetus Guard 18035 | -5/Cetus | Discovered new exit (range 15) 18046 | -5/Cetus | Scared off Revision 17 18049 | -5/Cetus | Destroyed 7 combat bots 18299 | -5/Cetus | Cetus Manufacturing Module disabled 18307 | -5/Cetus | High security lockdown imminent 18359 | -5/Cetus | Destroyed A7 18368 | -5/Cetus | Extracted ID and sensor layout for unrecognized location from A7's data core 18387 | -5/Cetus | High security lockdown engaged 18396 | -5/Cetus | Entered Archives 18416 | -5/Archives | Met Zhirov 18422 | -5/Archives | Reinforcements dispatched to Archives 18436 | -5/Archives | Discovered new exit (range 14) 18457 | -5/Archives | Entered Hub_04(d) 18579 | -5/Hub_04(d) | Retrieved Zion intel report: Prototype Schematics 18648 | -5/Hub_04(d) | Build established: Scavenger-Tank 18836 | -5/Hub_04(d) | Retrieved Zion intel report: Unaware Analyses 18888 | -5/Hub_04(d) | Discovered new exit (range 16) 18968 | -5/Hub_04(d) | Network Hub disabled 18977 | -5/Hub_04(d) | Network Hub disabled 18977 | -5/Hub_04(d) | Network Hub disabled 18978 | -5/Hub_04(d) | Core integrity fell below 50% 18980 | -5/Hub_04(d) | Entered Factory 18980 | -4/Factory | Evolved 2 slots: Propulsion x2 19274 | -4/Factory | First assault squad dispatched 19274 | -4/Factory | Retrieved Zion intel report: Trap Installations 19275 | -4/Factory | Zion Thermal Resupply teleported in 19678 | -4/Factory | Sucked down chute 19678 | -4/Factory | Entered Waste 19678 | -4/Waste | The area was eerily silent 19906 | -4/Waste | Discovered new exit (range 16) 19962 | -4/Waste | Build established: Scavenger-Gunner 20451 | -4/Waste | Entered Factory 21189 | -4/Factory | Spotted B-86 Titan 21205 | -4/Factory | Destroyed B-86 Titan 21330 | -4/Factory | Repaired Broken Centrium Heavy Treads? 21539 | -4/Factory | Discovered new exit (range 11) 21700 | -4/Factory | Identified exit to Research 21768 | -4/Factory | Retrieved Zion intel report: Component Schematics 21951 | -4/Factory | First assault squad dispatched 21952 | -4/Factory | Terminal network hard line cut 22116 | -4/Factory | System corruption reached 10% 22315 | -4/Factory | Found Imp. Powered Armor 22493 | -4/Factory | Repaired Centrium Heavy Treads 22575 | -4/Factory | Lost 4 parts (1p2n1w) 22651 | -4/Factory | Build established: Hauler-Tank 22873 | -4/Factory | Discovered exit to Research (range 15) 22981 | -4/Factory | Core integrity fell below 50% 23077 | -4/Factory | Repaired Broken Centrium Heavy Treads 23116 | -4/Factory | Entered Research 23116 | -3/Research | Evolved 2 slots: Propulsion x1, Weapon x1 23287 | -3/Research | Retrieved Zion intel report: Trap Installations 23288 | -3/Research | Zion Light squad teleported in 23318 | -3/Research | Build established: Scavenger-Tank 23646 | -3/Research | First assault squad dispatched 23692 | -3/Research | Zion Hacker squad teleported in 23745 | -3/Research | Zion Light squad teleported in 24008 | -3/Research | Spotted B-86 Titan 24112 | -3/Research | High security lockdown imminent 24152 | -3/Research | Destroyed B-86 Titan 24192 | -3/Research | High security lockdown engaged 24359 | -3/Research | Spotted Investigator 24359 | -3/Research | Scanned by Researcher 24383 | -3/Research | Destroyed Investigator 24414 | -3/Research | Destroyed 16 combat bots 24461 | -3/Research | DAS Turret deployed 24473 | -3/Research | Spotted Striker 24487 | -3/Research | Discovered new exit (range 15) 24489 | -3/Research | Core integrity fell below 50% 24494 | -3/Research | Entered another Research area 24494 | -2/Research | Evolved 2 slots: Weapon x2 24510 | -2/Research | Zion Recon squad teleported in 24520 | -2/Research | Lost 20 parts (2p8n4u6w) 24540 | -2/Research | Zion Recon squad teleported in 24720 | -2/Research | Build established: Mutant 24814 | -2/Research | Zion Recon squad teleported in 24864 | -2/Research | Zion Demo squad teleported in 24864 | -2/Research | High security lockdown imminent 24920 | -2/Research | Discovered new exit (range 7) 24925 | -2/Research | Identified exit to Access 24925 | -2/Research | Entered Access 24925 | -1/Access | Evolved 2 slots: Power x1, Propulsion x1 25008 | -1/Access | Retrieved Zion intel report: Active Terminals 25081 | -1/Access | Zion Trap Resupply teleported in 25117 | -1/Access | Zion Demo squad teleported in 25140 | -1/Access | Zion Trap Resupply teleported in 25164 | -1/Access | Spotted B-99 Colossus 25175 | -1/Access | First assault squad dispatched 25207 | -1/Access | Destroyed 7 combat bots 25210 | -1/Access | Lost 3 parts (1p2n) 25232 | -1/Access | System corruption reached 10% 25309 | -1/Access | Zion Kinetic Resupply teleported in 25315 | -1/Access | Zion Infowar Resupply teleported in 25411 | -1/Access | Zion Heavy squad teleported in 25449 | -1/Access | Discovered new exit (range 6) 25457 | -1/Access | Entered Command 25457 | -1/Command | Accompanied by 2 allies 25567 | -1/Command | Lost 3 parts (1n1u1w) 25602 | -1/Command | Spotted B-99 Colossus 25616 | -1/Command | Destroyed B-99 Colossus 25648 | -1/Command | Lost 4 parts (1p1n2u) 25649 | -1/Command | Core integrity fell below 50% 25742 | -1/Command | Disengaged cave seal 25743 | -1/Command | Core integrity fell below 20% 25773 | -1/Command | Lost 8 parts (7n1u) 25959 | -1/Command | Enhanced Grunt warped into view, answering call for help 25963 | -1/Command | Enhanced Grunt warped into view, answering call for help 25984 | -1/Command | First assault squad dispatched 26031 | -1/Command | High security lockdown imminent 26066 | -1/Command | Build established: Scavenger-Executioner 26083 | -1/Command | Spotted Combat Programmer 26084 | -1/Command | Spotted M Guard 26084 | -1/Command | Spotted M Guard 26086 | -1/Command | Spotted Combat Programmer 26106 | -1/Command | Allies destroyed Combat Programmer 26111 | -1/Command | High security lockdown engaged 26112 | -1/Command | Allies destroyed M Guard 26114 | -1/Command | Allies destroyed M Guard 26118 | -1/Command | Allies destroyed Combat Programmer 26118 | -1/Command | All MAIN.C guards destroyed 26142 | -1/Command | Found Prototype Launcher 26142 | -1/Command | Identified Adv. Micro-nuke Launcher 26221 | -1/Command | Found Prototype Reactor 26351 | -1/Command | Found Prototype Energy Cannon 26351 | -1/Command | Identified Zio. Alpha Cannon Mk. II 26356 | -1/Command | Found Zio. Alpha Cannon Mk. II 26360 | -1/Command | Found Prototype Energy Cannon 26360 | -1/Command | Identified Zio. Alpha Cannon 26406 | -1/Command | Found Zio. Weapon Casing 26409 | -1/Command | Found Zio. Weapon Casing 26468 | -1/Command | Met MAIN.C 26526 | -1/Command | 0b10 Conduit disabled 26537 | -1/Command | Destroyed by MAIN.C with High-powered Disruptor Cannon Last Messages --------------- 26513_ System corrupted: Zio. Alpha Cannon Mk. II targeting data glitched. 26513_ Slug penetrates MAIN.C. 26514_ Zio. Alpha Cannon Mk. II destroyed. 26516_ Slug penetrates MAIN.C. 26516_ MAIN.C suffers critical hit. 26518_ Biometal Leg destroyed. 26520_ Biometal Medium Treads destroyed. 26521_ Ended siege mode. 26521_ KE Penetrator destroyed. 26521_ Rnf. Antimatter Reactor destroyed. 26522_ System corrupted: Energy discharge (-40). 26522_ Dropped Adv. Coolant Injector. 26523_ Exp. Biometal Heavy Treads destroyed. 26524_ Myomer Leg destroyed. 26524_ Biometal Leg destroyed. 26526_ 0b10 Conduit disabled. 26528_ Biometal Leg destroyed. 26534_ Exp. Cooling System destroyed. 26534_ Antimatter Reactor destroyed. 26537_ Lgt. Quantum Reactor destroyed. Map ----- +----------------------------------------------------+ | ?????????????????????????????????????????????????? | | ?????????????????????????????????????????????????? | | ?????????????????????????????????????????????????? | | ?????????????????????????????????????????????????? | | ?????????????????????????????????????????????????? | | ?????????????????????????????????????????????????? | | ?????????????????????????????????????????????????? | | ?????????????????????????????????????????????????? | | ?????????????????????????????????????????????????? | | ?????????????????????????????????????????????????? | | ?????????????????????????????????????????????????? | | ?????????????????????????????????????????????????? | | ?????????????????????????????????????????????????? | | ?????????????????????????????????????????????????? | | ?????????????????????????????????????????????????? | | ???????????????????################??????????????? | | ?????????????????""" """" #??????????????? | | ????????????????? "" #??????????????? | | ?????????????????" "" ################ | | ????????????????"""""""" /%=* | | ???????????????? " "" g g =/%%= | | ??????????????????"""" g m %/!*[ | | ??????????????????"""" gg g !!################ | | ????????????? " """""" ggMMM #??????????????? | | ????????????? " "" llMMM #??????????????? | | ????????????? " " @MMM ""#??????????????? | | ??????????????"""""""" """""""#??????????????? | | ???????????????? """""""""#??????????????? | | ?????????????? """""""""""#??????????????? | | ????????????? " " " " #??????????????? | | ????????????# " " " " #??????????????? | | ????????????" " " " """" "?#??????????????? | | ????????????" """ " " ?""""????????????????? | | ????????????" " " " ?????????????????????? | | ????????????# """"""?""" ????????????????????? | | ????????????? "??????" ""?????????????????????? | | ????????????? ?????????? ????????????????????????? | | ?????????????????????????????????????????????????? | | ?????????????????????????????????????????????????? | | ?????????????????????????????????????????????????? | | ?????????????????????????????????????????????????? | | ?????????????????????????????????????????????????? | | ?????????????????????????????????????????????????? | | ?????????????????????????????????????????????????? | | ?????????????????????????????????????????????????? | | ?????????????????????????????????????????????????? | | ?????????????????????????????????????????????????? | | ?????????????????????????????????????????????????? | | ?????????????????????????????????????????????????? | | ?????????????????????????????????????????????????? | +----------------------------------------------------+ Best States ------------- Heat Dissipation 121 Coolant Potential 100 Energy Generation 81 Energy Capacity 1520 Matter Stores 1221 Matter Capacity 1800 Sight Range 20 Terrain Scan Range 24 Terrain Scan Density 10 Jamming Range 16 Cloak Strength 5 Additional Mass Support 36 Armor Coverage 450 Resistance: KI 20 Core Shielding 20 Weapon Shielding 100 Point Defense Rating 480 Phase Shifting 15 Evasion (%) 55 Targeting Accuracy 24 Armor Integrity Analysis 33 Recoil Reduction 9 Particle Charging 25 Defensive Hacking 10 Item Schematics ----------------- Kinetic Spear | -5/Hub_04(d) | Z-intel Enh. Fission Core | -5/Hub_04(d) | Z-intel Plasma Sword | -5/Hub_04(d) | Z-intel Hvy. Proton Missile Launcher | -5/Hub_04(d) | Z-intel Scatter Rocket Array | -5/Hub_04(d) | Z-intel Gravity Neutralizing Apparatus | -5/Hub_04(d) | Z-intel Prc. Energy Filter | -5/Hub_04(d) | Z-intel Cld. Gravmag System | -5/Hub_04(d) | Z-intel Exp. Targeting Computer | -5/Hub_04(d) | Z-intel Adv. Power Amplifier | -5/Hub_04(d) | Z-intel Rnf. Quantum Reactor | -4/Factory | Downloaded Adv. Melee Analysis Suite | -4/Factory | Z-intel Greatsword | -4/Factory | Z-intel Thermal Shield | -4/Factory | Z-intel Imp. Arc Projector | -4/Factory | Z-intel Matter Compressor | -4/Factory | Z-intel Lgt. Angular Momentum Engine | -4/Factory | Z-intel System Guard | -4/Factory | Z-intel Imp. Thermal Shield | -4/Factory | Z-intel Adv. Sensor Array | -4/Factory | Z-intel Overload Amplifier | -4/Factory | Z-intel Dispersion Rifle | -4/Factory | Z-intel Gravmag Array | -4/Factory | Z-intel Adv. Hacking Suite | -4/Factory | Z-intel Adv. Targeting Computer | -4/Factory | Z-intel Kinecellerator | -4/Factory | Z-intel Adv. Hardlight Generator | -4/Factory | Z-intel Robot Schematics ------------------ Y-45 Defender | -8/Storage | Hacked Fabricated ------------ Lrn. Proton Cannon | x1 | -7/Factory | Preloaded Lrn. Proton Cannon | x1 | -7/Factory | Preloaded Lrn. Proton Cannon | x1 | -7/Factory | Preloaded Alien Tech Used ----------------- None Achievements -------------- Executioner Freeware Friend Of Zion Most Wanted The One Challenges ------------ None Game ------ Seed MachineMassPenetrator Manual? 0 Play Time 09:10:36 Cumulative 400.4 hours Start 2020.09.19 @ 16:05:47 End 2020.09.26 @ 19:32:26 Sessions 9 Manual Loads 0 Difficulty Rogue Special Mode None Game No. 52 Rogue 52 Adventurer 0 Explorer 0 Win Type - Total 20 Types 10/4/1/0/2/0/3/0/0 Lore% 86 Gallery% 93 Achievement% 79 Wizard Run 0 Options --------- ASCII 0 Keyboard 0 Movement Numpad Keybinds 0 Fullscreen 2 Font 18/Terminus Map View 76x50 Tactical HUD 1 Map Filters NONE Filters NONE Steam 1 RUN: c266e703-903c-4126-999e-6b2a4e5e1af7